fUST/lending_fUST_20240902
["ID","MTS","AMOUNT","RATE_DAILY","PERIOD"]
[336945361,1725258646795,-480.65963602,0.00025205,2]
[336945362,1725258646805,-501.7,0.00025205,2]
[336945363,1725258646814,-500.0,0.00025205,2]
[336945364,1725258646825,-500.0,0.00025205,2]
[336945365,1725258646834,-500.0,0.00025205,2]
[336945366,1725258646844,-556.6,0.00025205,2]
[336945367,1725258646855,-572.03,0.00025205,2]
[336945368,1725258646866,-500.0,0.00025205,2]
[336945369,1725258646875,-502.71,0.00025205,2]
[336945370,1725258646885,-500.0,0.00025205,2]
[336945371,1725258646895,-500.0,0.00025205,2]
[336945372,1725258646906,-500.0,0.00025205,2]
[336945373,1725258646917,-500.0,0.00025205,2]
[336945374,1725258646930,-2693.42,0.00025205,2]
[336945375,1725258646939,-500.0,0.00025205,2]
[336945376,1725258646951,-500.0,0.00025205,2]
[336945377,1725258646964,-500.0,0.00025205,2]
[336945378,1725258646973,-500.0,0.00025205,2]
[336945379,1725258646983,-500.0,0.00025205,2]
[336945380,1725258646993,-500.0,0.00025205,2]
[336945381,1725258647004,-500.0,0.00025205,2]
[336945382,1725258647017,-606.26,0.00025205,2]
[336945383,1725258647026,-500.0,0.00025205,2]
[336945384,1725258647036,-500.0,0.00025205,2]
[336945385,1725258647046,-508.1,0.00025205,2]
[336945386,1725258647055,-500.0,0.00025205,2]
[336945387,1725258647066,-678.91,0.00025205,2]
[336945388,1725258647076,-588.43,0.00025205,2]
[336945389,1725258647086,-500.0,0.00025205,2]
[336945390,1725258647095,-500.0,0.00025205,2]
[336945391,1725258647106,-500.0,0.00025205,2]
[336945392,1725258647116,-500.0,0.00025205,2]
[336945393,1725258647125,-151.0,0.00025205,7]
[336945394,1725258647136,-701.58,0.00025205,2]
[336945395,1725258647145,-704.38,0.00025205,2]
[336945396,1725258647155,-604.82,0.00025205,2]
[336945397,1725258647165,-542.86470932,0.00025205,2]
[336945398,1725258647174,-151.0,0.00025205,7]
[336945399,1725258647183,-543.95,0.00025205,2]
[336945400,1725258647193,-500.0,0.00025205,2]
[336945401,1725258647203,-500.0,0.00025205,2]
[336945402,1725258647212,-500.0,0.00025205,2]
[336945403,1725258647222,-500.0,0.00025205,2]
[336945404,1725258647231,-500.0,0.00025205,2]
[336945405,1725258647241,-1217.58,0.00025205,2]
[336945406,1725258647250,-500.0,0.00025205,2]
[336945407,1725258647260,-522.46,0.00025205,2]
[336945408,1725258647270,-500.0,0.00025205,2]
[336945409,1725258647280,-500.0,0.00025205,2]
[336945410,1725258647289,-826.86,0.00025205,2]
[336945411,1725258647298,-728.19,0.00025205,2]
[336945412,1725258647308,-151.0,0.00025205,7]
[336945413,1725258647319,-500.0,0.00025205,2]
[336945414,1725258647330,-151.0,0.00025205,7]
[336945415,1725258647341,-999.17,0.00025205,2]
[336945416,1725258647351,-1665.34,0.00025205,2]
[336945417,1725258647362,-500.0,0.00025205,2]
[336945418,1725258647372,-500.0,0.00025205,2]
[336945419,1725258647384,-500.0,0.00025205,2]
[336945420,1725258647394,-500.0,0.00025205,2]
[336945421,1725258647406,-500.0,0.00025205,2]
[336945422,1725258647415,-962.83,0.00025205,2]
[336945423,1725258647424,-954.9,0.00025205,2]
[336945424,1725258647433,-500.0,0.00025205,2]
[336945425,1725258647442,-500.0,0.00025205,2]
[336945426,1725258647453,-632.46,0.00025205,2]
[336945427,1725258647463,-500.0,0.00025205,2]
[336945428,1725258647472,-672.66,0.00025205,2]
[336945429,1725258647482,-500.0,0.00025205,2]
[336945430,1725258647491,-929.62,0.00025205,2]
[336945431,1725258647501,-2020.1,0.00025205,2]
[336945432,1725258647511,-500.0,0.00025205,2]
[336945433,1725258647520,-500.0,0.00025205,2]
[336945434,1725258647530,-500.0,0.00025205,2]
[336945435,1725258647539,-500.0,0.00025205,2]
[336945436,1725258647548,-500.0,0.00025205,2]
[336945437,1725258647557,-573.14,0.00025205,2]
[336945438,1725258647567,-665.01,0.00025205,2]
[336945439,1725258647577,-500.0,0.00025205,2]
[336945440,1725258647591,-500.0,0.00025205,2]
[336945441,1725258647602,-1487.23,0.00025205,2]
[336945442,1725258647611,-500.0,0.00025205,2]
[336945443,1725258647621,-500.0,0.00025205,2]
[336945444,1725258647631,-630.5,0.00025205,2]
[336945445,1725258647642,-1094.2,0.00025205,2]
[336945446,1725258647653,-8619.74,0.00025205,2]
[336945447,1725258647665,-984.18,0.00025205,2]
[336945448,1725258647675,-500.14791411,0.00025205,2]
[336945449,1725258647685,-500.0,0.00025205,2]
[336945450,1725258647694,-1157.38,0.00025205,2]
[336945451,1725258647703,-1200.96,0.00025205,2]
[336945452,1725258647713,-1212.92,0.00025205,2]
[336945453,1725258647722,-500.0,0.00025205,2]
[336945454,1725258647731,-879.85,0.00025205,2]
[336945455,1725258647741,-1820.98,0.00025205,2]
[336945456,1725258647750,-500.0,0.00025205,2]
[336945457,1725258647759,-601.14,0.00025205,2]
[336945458,1725258647768,-500.0,0.00025205,2]
[336945459,1725258647778,-500.0,0.00025205,2]
[336945460,1725258647787,-2061.91,0.00025205,2]
[336945461,1725258647797,-945.73,0.00025205,2]
[336945462,1725258647807,-1363.01,0.00025205,2]
[336945463,1725258647817,-500.0,0.00025205,2]
[336945464,1725258647828,-500.0,0.00025205,2]
[336945465,1725258647837,-1010.37,0.00025205,2]
[336945466,1725258647848,-500.0,0.00025205,2]
[336945467,1725258647859,-615.52,0.00025205,2]
[336945468,1725258647869,-500.0,0.00025205,2]
[336945469,1725258647879,-500.0,0.00025205,2]
[336945470,1725258647889,-500.0,0.00025205,2]
[336945471,1725258647899,-3897.9,0.00025205,2]
[336945472,1725258647910,-1052.29,0.00025205,2]
[336945473,1725258647927,-859.7,0.00025205,2]
[336945474,1725258647938,-1412.46,0.00025205,2]
[336945475,1725258647949,-500.0,0.00025205,2]
[336945476,1725258647958,-1256.22,0.00025205,2]
[336945477,1725258647968,-500.0,0.00025205,2]
[336945478,1725258647978,-847.48,0.00025205,2]
[336945479,1725258647988,-1079.06,0.00025205,2]
[336945480,1725258647997,-1255.85,0.00025205,2]
[336945481,1725258648007,-500.0,0.00025205,2]
[336945482,1725258648017,-502.32487586,0.00025205,2]
[336945483,1725258648027,-755.07,0.00025205,2]
[336945484,1725258648037,-500.0,0.00025205,2]
[336945485,1725258648046,-500.0,0.00025205,2]
[336945486,1725258648056,-526.57,0.00025205,2]
[336945487,1725258648066,-990.3,0.00025205,2]
[336945488,1725258648075,-1701.04,0.00025205,2]
[336945489,1725258648085,-500.0,0.00025205,2]
[336945490,1725258648095,-500.0,0.00025205,2]
[336945491,1725258648105,-500.0,0.00025205,2]
[336945492,1725258648115,-500.0,0.00025205,2]
[336945493,1725258648124,-650.19,0.00025205,2]
[336945494,1725258648272,-531.52,0.00025205,2]
[336945495,1725258648282,-586.59,0.00025205,2]
[336945496,1725258648291,-500.0,0.00025205,2]
[336945497,1725258648301,-500.0,0.00025205,2]
[336945498,1725258648311,-708.4,0.00025205,2]
[336945499,1725258648320,-500.0,0.00025205,2]
[336945500,1725258648330,-6482.63,0.00025205,2]
[336945501,1725258648339,-1126.44,0.00025205,2]
[336945502,1725258648348,-500.0,0.00025205,2]
[336945503,1725258648358,-500.0,0.00025205,2]
[336945504,1725258648368,-580.6195655,0.00025205,2]
[336945505,1725258648378,-500.0,0.00025205,2]
[336945506,1725258648388,-1244.01,0.00025205,2]
[336945507,1725258648398,-500.0,0.00025205,2]
[336945508,1725258648407,-1255.46,0.00025205,2]
[336945509,1725258648417,-7008.83,0.00025205,2]
[336945510,1725258648426,-500.0,0.00025205,2]
[336945511,1725258648437,-500.0,0.00025205,2]
[336945512,1725258648446,-500.0,0.00025205,2]
[336945513,1725258648456,-500.0,0.00025205,2]
[336945514,1725258648465,-500.0,0.00025205,2]
[336945515,1725258648475,-1390.74,0.00025205,2]
[336945516,1725258648486,-1519.35,0.00025205,2]
[336945517,1725258648496,-505.96564613,0.00025205,2]
[336945518,1725258648505,-540.76280674,0.00025205,2]
[336945519,1725258648515,-500.0,0.00025205,2]
[336945520,1725258648525,-622.25,0.00025205,2]
[336945521,1725258648535,-712.31,0.00025205,2]
[336945522,1725258648544,-500.0,0.00025205,2]
[336945523,1725258648554,-2446.84,0.00025205,2]
[336945524,1725258648564,-1424.6,0.00025205,2]
[336945525,1725258648573,-500.0,0.00025205,2]
[336945526,1725258648583,-1006.69,0.00025205,2]
[336945527,1725258648592,-500.0,0.00025205,2]
[336945528,1725258648602,-500.0,0.00025205,2]
[336945529,1725258648611,-1085.39,0.00025205,2]
[336945530,1725258648621,-500.0,0.00025205,2]
[336945531,1725258648631,-500.0,0.00025205,2]
[336945532,1725258648640,-500.0,0.00025205,2]
[336945533,1725258648650,-504.75777711,0.00025205,2]
[336945534,1725258648659,-509.71311402,0.00025205,2]
[336945535,1725258648668,-500.0,0.00025205,2]
[336945536,1725258648678,-500.0,0.00025205,2]
[336945537,1725258648688,-502.94461312,0.00025205,2]
[336945538,1725258648697,-2933.59,0.00025205,2]
[336945539,1725258648707,-500.0,0.00025205,2]
[336945540,1725258648717,-500.0,0.00025205,2]
[336945541,1725258648726,-508.45873812,0.00025205,2]
[336945542,1725258648736,-1058.21,0.00025205,2]
[336945543,1725258648746,-966.6,0.00025205,2]
[336945544,1725258648755,-1609.12,0.00025205,2]
[336945545,1725258648764,-500.0,0.00025205,2]
[336945546,1725258648777,-1631.02,0.00025205,2]
[336945547,1725258648786,-1212.67,0.00025205,2]
[336945548,1725258648797,-500.0,0.00025205,2]
[336945549,1725258648807,-1000.0,0.00025206,2]
[336945550,1725258648817,-3000.0,0.0002521,2]
[336945551,1725258648826,-1000.0,0.00025212,2]
[336945552,1725258648835,-3000.0,0.0002522,2]
[336945553,1725258648845,-1000.0,0.00025221,2]
[336945554,1725258648855,-176.71261535,0.00025221,2]
[336945555,1725258648864,-3000.0,0.0002523,2]
[336945556,1725258648874,-1000.0,0.00025235,2]
[336945557,1725258648884,-3000.0,0.0002524,2]
[336945558,1725258648893,-151.0,0.0002524,7]
[336945559,1725258648903,-151.0,0.0002524,7]
[336945560,1725258648912,-3000.0,0.0002525,2]
[336945561,1725258648926,-1000.0,0.0002525,2]
[336945562,1725258648935,-151.0,0.0002525,7]
[336945563,1725258648944,-151.0,0.0002525,7]
[336945564,1725258648954,-503.59009378,0.0002525,2]
[336945565,1725258648965,-1000.0,0.00025253,2]
[336945566,1725258648974,-1000.0,0.00025256,2]
[336945567,1725258648984,-3682.529754,0.0002526,2]
[336945568,1725258648995,-817.74825326,0.00025262,2]
[336945569,1725258649007,-1918.52,0.00025275,2]
[336945570,1725258649017,-345.214234,0.00025276,2]
[336945571,1725258649027,-366.401559,0.00025276,2]
[336945572,1725258649036,-300.924316,0.00025276,2]
[336945573,1725258649045,-168.892399,0.00025276,2]
[336945574,1725258649055,-1000.0,0.00025287,2]
[336945575,1725258649064,-1000.0,0.00025298,2]
[336945576,1725258649074,-305.0,0.000253,2]
[336945577,1725258649084,-1000.0,0.00025337,2]
[336945578,1725258649093,-188.71545216,0.00025349,2]
[336945579,1725258649103,-150.112233,0.000254,8]
[336945580,1725258649113,-1000.0,0.00025424,2]
[336945581,1725258649123,-1000.0,0.00025428,2]
[336945582,1725258649132,-1000.0,0.0002544,2]
[336945583,1725258649142,-1000.0,0.00025446,2]
[336945584,1725258649151,-1000.0,0.00025448,2]
[336945585,1725258649161,-409.79626428,0.00025469,3]
[336945586,1725258649171,-900.0,0.00025469,3]
[336945587,1725258649181,-356.64114298,0.00025472,2]
[336945588,1725258649190,-6317.73255612,0.00025472,2]
[336945589,1725258649200,-210.3217632,0.00025473,2]
[336945590,1725258649209,-1918.52,0.00025478,2]
[336945591,1725258649219,-1918.52,0.00025478,2]
[336945592,1725258649229,-1918.52,0.00025478,2]
[336945593,1725258649238,-71055.45210004,0.00025479,11]
[336945594,1725258649247,-500.0,0.00025479,2]
[336945595,1725258649258,-500.0,0.00025479,2]
[336945596,1725258649267,-500.0,0.00025479,2]
[336945597,1725258649276,-500.0,0.00025479,2]
[336945598,1725258649286,-512.55,0.00025479,2]
[336945599,1725258649295,-520.0,0.00025479,2]
[336945600,1725258649305,-151.0,0.00025479,7]
[336945601,1725258649315,-500.0,0.00025479,2]
[336945602,1725258649324,-500.0,0.00025479,2]
[336945603,1725258649334,-500.0,0.00025479,2]
[336945604,1725258649343,-500.0,0.00025479,2]
[336945605,1725258649352,-764.81,0.00025479,2]
[336945606,1725258649362,-500.0,0.00025479,2]
[336945607,1725258649372,-500.0,0.00025479,2]
[336945608,1725258649382,-500.0,0.00025479,2]
[336945609,1725258649392,-500.0,0.00025479,2]
[336945610,1725258649401,-500.0,0.00025479,2]
[336945611,1725258649411,-501.7,0.00025479,2]
[336945612,1725258649420,-500.0,0.00025479,2]
[336945613,1725258649429,-500.0,0.00025479,2]
[336945614,1725258649438,-556.6,0.00025479,2]
[336945615,1725258649448,-572.03,0.00025479,2]
[336945616,1725258649458,-500.0,0.00025479,2]
[336945617,1725258649467,-502.71,0.00025479,2]
[336945618,1725258649476,-500.0,0.00025479,2]
[336945619,1725258649486,-500.0,0.00025479,2]
[336945620,1725258649495,-500.0,0.00025479,2]
[336945621,1725258649505,-2693.42,0.00025479,2]
[336945622,1725258649517,-500.0,0.00025479,2]
[336945623,1725258649527,-500.0,0.00025479,2]
[336945624,1725258649538,-500.0,0.00025479,2]
[336945625,1725258649548,-500.0,0.00025479,2]
[336945626,1725258649560,-500.0,0.00025479,2]
[336945627,1725258649569,-500.0,0.00025479,2]
[336945628,1725258649579,-500.0,0.00025479,2]
[336945629,1725258649588,-606.26,0.00025479,2]
[336945630,1725258649598,-500.0,0.00025479,2]
[336945631,1725258649607,-500.0,0.00025479,2]
[336945632,1725258649618,-508.1,0.00025479,2]
[336945633,1725258649630,-500.0,0.00025479,2]
[336945634,1725258649644,-678.91,0.00025479,2]
[336945635,1725258649659,-588.43,0.00025479,2]
[336945636,1725258649674,-520.81082283,0.00025479,2]
[336945637,1725258649686,-500.0,0.00025479,2]
[336945638,1725258649697,-151.0,0.00025479,7]
[336945639,1725258649709,-701.58,0.00025479,2]
[336945640,1725258649721,-704.38,0.00025479,2]
[336945641,1725258649734,-604.82,0.00025479,2]
[336945642,1725258649749,-151.0,0.00025479,7]
[336945643,1725258649761,-543.95,0.00025479,2]
[336945644,1725258649773,-500.0,0.00025479,2]
[336945645,1725258649788,-500.0,0.00025479,2]
[336945646,1725258649801,-500.0,0.00025479,2]
[336945647,1725258649815,-500.0,0.00025479,2]
[336945648,1725258649827,-1217.58,0.00025479,2]
[336945649,1725258649842,-500.0,0.00025479,2]
[336945650,1725258649856,-522.46,0.00025479,2]
[336945651,1725258649869,-567.437962,0.00025479,2]
[336945652,1725258649882,-826.86,0.00025479,2]
[336945653,1725258649892,-728.19,0.00025479,2]
[336945654,1725258649904,-151.0,0.00025479,7]
[336945655,1725258649919,-500.0,0.00025479,2]
[336945656,1725258649931,-151.0,0.00025479,7]
[336945657,1725258649944,-999.17,0.00025479,2]
[336945658,1725258649957,-1665.34,0.00025479,2]
[336945659,1725258649971,-500.0,0.00025479,2]
[336945660,1725258649984,-500.0,0.00025479,2]
[336945661,1725258649997,-500.0,0.00025479,2]
[336945662,1725258650011,-500.0,0.00025479,2]
[336945663,1725258650022,-500.0,0.00025479,2]
[336945664,1725258650033,-962.83,0.00025479,2]
[336945665,1725258650043,-954.9,0.00025479,2]
[336945666,1725258650056,-500.0,0.00025479,2]
[336945667,1725258650069,-632.46,0.00025479,2]
[336945668,1725258650082,-500.0,0.00025479,2]
[336945669,1725258650095,-672.66,0.00025479,2]
[336945670,1725258650106,-500.0,0.00025479,2]
[336945671,1725258650116,-929.62,0.00025479,2]
[336945672,1725258650129,-2020.1,0.00025479,2]
[336945673,1725258650140,-500.0,0.00025479,2]
[336945674,1725258650153,-500.0,0.00025479,2]
[336945675,1725258650164,-500.0,0.00025479,2]
[336945676,1725258650175,-500.0,0.00025479,2]
[336945677,1725258650185,-500.0,0.00025479,2]
[336945678,1725258650196,-573.14,0.00025479,2]
[336945679,1725258650207,-665.01,0.00025479,2]
[336945680,1725258650217,-500.0,0.00025479,2]
[336945681,1725258650229,-1487.23,0.00025479,2]
[336945682,1725258650239,-500.0,0.00025479,2]
[336945683,1725258650251,-500.0,0.00025479,2]
[336945684,1725258650262,-630.5,0.00025479,2]
[336945685,1725258650275,-1094.2,0.00025479,2]
[336945686,1725258650286,-8619.74,0.00025479,2]
[336945687,1725258650298,-984.18,0.00025479,2]
[336945688,1725258650308,-500.0,0.00025479,2]
[336945689,1725258650328,-1157.38,0.00025479,2]
[336945690,1725258650338,-1200.96,0.00025479,2]
[336945691,1725258650349,-1212.92,0.00025479,2]
[336945692,1725258650360,-500.0,0.00025479,2]
[336945693,1725258650372,-879.85,0.00025479,2]
[336945694,1725258650383,-1820.98,0.00025479,2]
[336945695,1725258650393,-500.0,0.00025479,2]
[336945696,1725258650404,-601.14,0.00025479,2]
[336945697,1725258650416,-500.0,0.00025479,2]
[336945698,1725258650427,-2061.91,0.00025479,2]
[336945699,1725258650437,-945.73,0.00025479,2]
[336945700,1725258650448,-1363.01,0.00025479,2]
[336945701,1725258650460,-500.0,0.00025479,2]
[336945702,1725258650471,-500.0,0.00025479,2]
[336945703,1725258650484,-1010.37,0.00025479,2]
[336945704,1725258650497,-500.0,0.00025479,2]
[336945705,1725258650510,-500.0,0.00025479,2]
[336945706,1725258650520,-3897.9,0.00025479,2]
[336945707,1725258650531,-1052.29,0.00025479,2]
[336945708,1725258650542,-859.7,0.00025479,2]
[336945709,1725258650554,-1412.46,0.00025479,2]
[336945710,1725258650566,-500.0,0.00025479,2]
[336945711,1725258650577,-1256.22,0.00025479,2]
[336945712,1725258650589,-572.1840676,0.00025479,2]
[336945713,1725258650600,-847.48,0.00025479,2]
[336945714,1725258650612,-1079.06,0.00025479,2]
[336945715,1725258650623,-1255.85,0.00025479,2]
[336945716,1725258650635,-533.07142725,0.00025479,2]
[336945717,1725258650646,-755.07,0.00025479,2]
[336945718,1725258650657,-500.0,0.00025479,2]
[336945719,1725258650668,-500.0,0.00025479,2]
[336945720,1725258650679,-526.57,0.00025479,2]
[336945721,1725258650690,-990.3,0.00025479,2]
[336945722,1725258650701,-1701.04,0.00025479,2]
[336945723,1725258650712,-500.0,0.00025479,2]
[336945724,1725258650723,-500.0,0.00025479,2]
[336945725,1725258650734,-500.0,0.00025479,2]
[336945726,1725258650744,-650.19,0.00025479,2]
[336945727,1725258650755,-500.0,0.00025479,2]
[336945728,1725258650766,-531.52,0.00025479,2]
[336945729,1725258650777,-586.59,0.00025479,2]
[336945730,1725258650789,-500.0,0.00025479,2]
[336945731,1725258650801,-500.0,0.00025479,2]
[336945732,1725258650813,-708.4,0.00025479,2]
[336945733,1725258650824,-6482.63,0.00025479,2]
[336945734,1725258650835,-1126.44,0.00025479,2]
[336945735,1725258650847,-500.0,0.00025479,2]
[336945736,1725258650860,-500.0,0.00025479,2]
[336945737,1725258650872,-1244.01,0.00025479,2]
[336945738,1725258650884,-1255.46,0.00025479,2]
[336945739,1725258650895,-7008.83,0.00025479,2]
[336945740,1725258650906,-500.0,0.00025479,2]
[336945741,1725258650919,-500.0,0.00025479,2]
[336945742,1725258650941,-400.88635098,0.00025479,2]
[336945743,1725258650953,-1390.74,0.00025479,2]
[336945744,1725258650964,-1519.35,0.00025479,2]
[336945745,1725258650975,-500.0,0.00025479,2]
[336945746,1725258650987,-622.25,0.00025479,2]
[336945747,1725258650998,-712.31,0.00025479,2]
[336945748,1725258651007,-503.03954812,0.00025479,2]
[336945749,1725258651017,-2446.84,0.00025479,2]
[336945750,1725258651027,-1424.6,0.00025479,2]
[336945751,1725258651037,-500.0,0.00025479,2]
[336945752,1725258651047,-1006.69,0.00025479,2]
[336945753,1725258651056,-500.0,0.00025479,2]
[336945754,1725258651067,-500.0,0.00025479,2]
[336945755,1725258651076,-1085.39,0.00025479,2]
[336945756,1725258651085,-500.0,0.00025479,2]
[336945757,1725258651096,-500.0,0.00025479,2]
[336945758,1725258651105,-500.0,0.00025479,2]
[336945759,1725258651115,-500.0,0.00025479,2]
[336945760,1725258651124,-2933.59,0.00025479,2]
[336945761,1725258651134,-500.0,0.00025479,2]
[336945762,1725258651143,-500.0,0.00025479,2]
[336945763,1725258651153,-1058.21,0.00025479,2]
[336945764,1725258651162,-966.6,0.00025479,2]
[336945765,1725258651172,-1609.12,0.00025479,2]
[336945766,1725258651181,-500.0,0.00025479,2]
[336945767,1725258651190,-1631.02,0.00025479,2]
[336945768,1725258651200,-1212.67,0.00025479,2]
[336945769,1725258651210,-236.61144705,0.000255,2]
[336945770,1725258651223,-1000.0,0.00025521,2]
[336945771,1725258651232,-1000.0,0.00025521,2]
[336945772,1725258651440,-757.140405,0.00025588,2]
[336945773,1725258651459,-795.977006,0.00025588,2]
[336945774,1725258651473,-195.111376,0.00025588,2]
[336945775,1725258651482,-280.244579,0.00025588,2]
[336945776,1725258651492,-420.366868,0.00025588,2]
[336945777,1725258651501,-179.144564,0.00025588,2]
[336945778,1725258651510,-198.323445,0.00025588,2]
[336945779,1725258651519,-345.214234,0.00025588,2]
[336945780,1725258651529,-366.401559,0.00025588,2]
[336945781,1725258651538,-300.924316,0.00025588,2]
[336945782,1725258651547,-181.848708,0.00025588,2]
[336945783,1725258651556,-168.892399,0.00025588,2]
[336945784,1725258651565,-731.770719,0.00025613,2]
[336945785,1725258651575,-244.82,0.00025653,7]
[336945786,1725258651583,-163.13613886,0.00025653,7]
[336945787,1725258651593,-163.13613886,0.00025653,7]
[336945788,1725258651602,-163.13613886,0.00025653,7]
[336945789,1725258651611,-163.13613886,0.00025653,7]
[336945790,1725258651620,-163.13613886,0.00025653,7]
[336945791,1725258651629,-151.0,0.00025658,3]
[336945792,1725258651638,-207.9928919,0.00025697,2]
[336945793,1725258651647,-207.9928919,0.00025697,2]
[336945794,1725258651658,-207.9928919,0.00025697,2]
[336945795,1725258651667,-153.0,0.00025697,2]
[336945796,1725258651676,-207.9928919,0.00025697,2]
[336945797,1725258651685,-414.9522768,0.00025697,2]
[336945798,1725258651694,-153.0,0.00025697,2]
[336945799,1725258651703,-306.0,0.00025697,2]
[336945800,1725258651713,-207.943127,0.0002572,2]
[336945801,1725258651723,-306.8516559,0.0002572,2]
[336945802,1725258651732,-153.0,0.0002572,2]
[336945803,1725258651741,-819.5803318,0.0002572,2]
[336945804,1725258651750,-153.0,0.00025727,2]
[336945805,1725258651759,-153.0,0.00025727,2]
[336945806,1725258651770,-153.0,0.00025727,2]
[336945807,1725258651781,-153.0,0.00025727,2]
[336945808,1725258651793,-153.0,0.00025727,2]
[336945809,1725258651803,-150.111,0.0002574,2]
[336945810,1725258651812,-150.114,0.0002574,2]
[336945811,1725258651822,-150.434,0.0002574,2]
[336945812,1725258651831,-150.0,0.0002574,2]
[336945813,1725258651840,-150.109,0.0002574,2]
[336945814,1725258651850,-523.0,0.0002574,2]
[336945815,1725258651859,-150.0,0.0002574,2]
[336945816,1725258651869,-409.79626428,0.00025743,3]
[336945817,1725258651878,-156.64419862,0.00025752,120]
[336945818,1725258651887,-1918.52,0.00025752,2]
[336945819,1725258651896,-1918.52,0.00025752,2]
[336945820,1725258651906,-1918.52,0.00025752,2]
[336945821,1725258651916,-1918.52,0.00025752,2]
[336945822,1725258651929,-1918.52,0.00025752,2]
[336945823,1725258651939,-1918.75046475,0.00025752,2]
[336945824,1725258651949,-500.0,0.00025753,2]
[336945825,1725258651958,-460.58161398,0.00025753,2]
[336945826,1725258651968,-500.0,0.00025753,2]
[336945827,1725258651978,-500.0,0.00025753,2]
[336945828,1725258651987,-512.55,0.00025753,2]
[336945829,1725258651996,-520.0,0.00025753,2]
[336945830,1725258652006,-282.0,0.00025753,7]
[336945831,1725258652015,-500.0,0.00025753,2]
[336945832,1725258652024,-534.73182457,0.00025753,2]
[336945833,1725258652034,-500.0,0.00025753,2]
[336945834,1725258652043,-764.81,0.00025753,2]
[336945835,1725258652052,-500.0,0.00025753,2]
[336945836,1725258652062,-500.0,0.00025753,2]
[336945837,1725258652071,-500.0,0.00025753,2]
[336945838,1725258652081,-287.59052558,0.00025753,2]
[336945839,1725258652091,-501.7,0.00025753,2]
[336945840,1725258652102,-500.0,0.00025753,2]
[336945841,1725258652111,-500.0,0.00025753,2]
[336945842,1725258652121,-556.6,0.00025753,2]
[336945843,1725258652131,-572.03,0.00025753,2]
[336945844,1725258652140,-457.67490652,0.00025753,2]
[336945845,1725258652149,-502.71,0.00025753,2]
[336945846,1725258652159,-500.0,0.00025753,2]
[336945847,1725258652168,-500.0,0.00025753,7]
[336945848,1725258652177,-539.52578357,0.00025753,7]
[336945849,1725258652186,-500.0,0.00025753,2]
[336945850,1725258652195,-500.0,0.00025753,2]
[336945851,1725258652205,-2693.42,0.00025753,2]
[336945852,1725258652214,-500.0,0.00025753,2]
[336945853,1725258652223,-500.0,0.00025753,2]
[336945854,1725258652233,-500.0,0.00025753,2]
[336945855,1725258652242,-500.0,0.00025753,2]
[336945856,1725258652252,-500.0,0.00025753,2]
[336945857,1725258652260,-500.0,0.00025753,2]
[336945858,1725258652270,-500.0,0.00025753,2]
[336945859,1725258652279,-606.26,0.00025753,2]
[336945860,1725258652288,-500.0,0.00025753,2]